Cogmind - Beta 12 @@@ ROGUE MODE // 2023.03.27 @ 23:42:17 Player: Azken Zutik Result: Escaped! Performance ------------- Evolutions (9) 4500 Regions Visited (31) 6200 Robots Destroyed (489) 2445 Value Destroyed (23967) 23967 Prototype IDs (45) 900 Alien Tech Used (0) 0 Bonus (20431) 20431 TOTAL SCORE: 58443 Bonus ------- High Alert Combat Kills 7760 Follower Combat Kills 4675 Entered Garrisons 2200 Used RIF Installer 4500 Aligned with FarCom 300 Win 3000 Friendly Fire -2004 Cogmind --------- Core Integrity 1207/1600 Matter 183/300 Energy 338/350 System Corruption 1% Temperature Cool (8) Movement Walking (117) Location To Epsilon Eridani Parts ------- > --- POWER (3) -------- Reinforced Quantum Reactor > --- PROPULSION (10) -- Armored Heavy Treads Myomer Leg Biometal Leg Centrium Leg High-density Centrium Leg > --- UTILITY (8) ------ High-capacity Storage Unit Advanced Salvage Targeting Computer Advanced Target Analyzer Improved Utility Shielding Relay Coupler [Swarmer] (44) Relay Coupler [Grunt] (14) Drone Bay (0/2) > --- WEAPON (4) ------- Heavy Machine Gun Railgun Heavy Flail > --- INVENTORY (20) --- Advanced Power Amplifier Advanced Heat Sink Matter Compressor (250) Antimissile System Relay Coupler [Specialist] (29) Relay Coupler [Proto] Relay Coupler [Proto] Heavy Machine Gun Railgun Helical Railgun Scatter Rocket Array Advanced Remote Datajack Improved Plasma Cutter Peak State ------------ > --- POWER ------------ Particle Reactor Light Quantum Reactor Light Quantum Reactor > --- PROPULSION ------- Myomer Leg Myomer Leg Biometal Leg Biometal Leg Biometal Leg Biometal Leg Biometal Leg Biometal Leg Centrium Leg High-density Centrium Leg > --- UTILITY ---------- High-capacity Storage Unit Advanced Salvage Targeting Computer Advanced Target Analyzer Experimental Core Analyzer Advanced Hardlight Generator Relay Coupler [Swarmer] Relay Coupler [Grunt] Long-range Tractor Beam > --- WEAPON ----------- KE Penetrator KE Penetrator Railgun Railgun > --- INVENTORY -------- Myomer Leg Myomer Leg Biometal Leg Advanced Power Amplifier Advanced Heat Sink Matter Compressor Antimissile System Relay Coupler [Specialist] Relay Coupler [Proto] Relay Coupler [Proto] Drone Bay Heavy Machine Gun Railgun Helical Railgun Scatter Rocket Array Smartbomb Launcher Advanced Remote Datajack Improved Plasma Cutter Heavy Flail [Rating: 186] Favorites ----------- Power F-cell Engine Engine F-cell Engine Power Core Neutrino Core Reactor Micro Antimatter Reactor Propulsion Armored Treads Treads Armored Treads Leg Myomer Leg Utility High-capacity Storage Unit Device Improved Kinecellerator Storage High-capacity Storage Unit Processor Modified TNC Hackware Relay Coupler [Grunt] Protection Medium Reactive Plating Weapon Enhanced Autogun Energy Gun Small Laser Ballistic Gun Enhanced Autogun Ballistic Cannon Bore Cannon Launcher Smartbomb Launcher Special Weapon Advanced Remote Datajack Impact Weapon Heavy Flail Slashing Weapon Vibroblade Special Melee Weapon Improved Datajack Build | -11 -10 -10 -9 -9 -9 -8 -8 -8 -7 -7 -7 -7 -7 -7 -6 -6 -6 -6 -5 -5 -4 -4 -3 -3 -2 -2 -2 -2 -2 -2 -1 ------- Run | Jun Mat Min Mat Min Exi Min Mat Gar Fac Was Fac Gar Fac Gar Fac Gar Fac Gar Fac Gar Fac Gar Res Gar Res Gar Res Gar Res Gar Acc Slots Evolved 18 | . . . 2 . . . 2 . 2 . . . . . 2 . . . 2 . 2 . 2 . 2 . . . . . 2 Power 2 | . . . . . . . . . . . . . . . . . . . 1 . . . 1 . . . . . . . . Propulsion 8 | . . . 1 . . . . . . . . . . . 1 . . . 1 . 1 . 1 . 1 . . . . . 2 Utility 6 | . . . . . . . 1 . 2 . . . . . 1 . . . . . 1 . . . 1 . . . . . . Weapon 2 | . . . 1 . . . 1 . . . . . . . . . . . . . . . . . . . . . . . . Parts Attached 547 | 3 14 9 8 . . 4 41 23 12 12 1 4 18 21 8 19 4 28 12 13 2 40 17 50 23 43 10 21 9 34 44 Power 33 | . . 1 . . . 1 2 . . 2 . 1 . . 1 . . . 1 . . . 1 5 2 4 . 3 . 4 5 Engine 6 | . . 1 . . . 1 1 . . . . . . . 1 . . . 1 . . . . . . . . . . . 1 Core 3 | . . . . . . . 1 . . . . . . . . . . . . . . . . . . . . . . 2 . Reactor 24 | . . . . . . . . . . 2 . 1 . . . . . . . . . . 1 5 2 4 . 3 . 2 4 Propulsion 96 | 2 2 2 2 . . 1 7 3 . 2 . . . . 1 . 1 2 2 1 1 12 3 13 3 5 2 4 2 9 14 Treads 41 | 2 2 2 2 . . 1 7 3 . 2 . . . . 1 . 1 2 2 1 1 1 2 . . 1 2 3 1 1 1 Leg 55 | . . . . . . . . . . . . . . . . . . . . . . 11 1 13 3 4 . 1 1 8 13 Wheel . | . . . . . . . . . . . . . . . . . . . . . . . . . . . . . . . . Hover . | . . . . . . . . . . . . . . . . . . . . . . . . . . . . . . . . Flight . | . . . . . . . . . . . . . . . . . . . . . . . . . . . . . . . . Utility 142 | 1 2 1 1 . . . 9 4 2 6 . 1 5 4 2 4 2 11 4 4 1 13 9 13 10 12 4 2 4 5 6 Device 93 | 1 1 . 1 . . . 5 4 1 5 . 1 4 3 1 4 1 9 3 3 1 10 3 11 7 8 1 . . 2 3 Storage 1 | . 1 . . . . . . . . . . . . . . . . . . . . . . . . . . . . . . Processor 9 | . . 1 . . . . 1 . 1 . . . . . . . . . . . . 1 1 . . 3 1 . . . . Hackware 27 | . . . . . . . 1 . . 1 . . 1 1 . . 1 1 1 . . . 4 2 1 1 2 1 4 3 2 Protection 12 | . . . . . . . 2 . . . . . . . 1 . . 1 . 1 . 2 1 . 2 . . 1 . . 1 Artifact . | . . . . . . . . . . . . . . . . . . . . . . . . . . . . . . . . Weapon 276 | . 10 5 5 . . 2 23 16 10 2 1 2 13 17 4 15 1 15 5 8 . 15 4 19 8 22 4 12 3 16 19 Energy Gun 1 | . 1 . . . . . . . . . . . . . . . . . . . . . . . . . . . . . . Energy Cannon . | . . . . . . . . . . . . . . . . . . . . . . . . . . . . . . . . Ballistic Gun 157 | . 5 3 4 . . 1 15 8 6 1 . 1 8 8 2 7 . 10 3 5 . 10 3 10 5 15 1 6 . 8 12 Ballistic Cannon 1 | . . . . . . . . . 1 . . . . . . . . . . . . . . . . . . . . . . Launcher 47 | . 4 1 1 . . 1 6 4 1 . . . 2 1 1 3 . 1 . 2 . 3 . 1 2 4 1 4 . 2 2 Special Weapon 30 | . . . . . . . . 1 1 1 . . 1 3 1 1 1 2 1 . . . 1 4 . 2 2 1 2 3 2 Impact Weapon 38 | . . 1 . . . . 1 3 1 . 1 1 1 5 . 4 . 2 1 1 . 2 . 4 1 1 . 1 1 3 3 Slashing Weapon 1 | . . . . . . . . . . . . . 1 . . . . . . . . . . . . . . . . . . Piercing Weapon . | . . . . . . . . . . . . . . . . . . . . . . . . . . . . . . . . Special Melee Weapon 1 | . . . . . . . 1 . . . . . . . . . . . . . . . . . . . . . . . . Unidentified Prototypes 15 | . . . . . . . 1 . . . . . 5 . 1 . . 1 1 . . . . . . 5 . . 1 . . Corrupted Parts 8 | . . . . . . . . . . . . . . . . . . . . . . . . . . 8 . . . . . System Corruption 60 | . . . . . . . . . . . . . . . . . . . . . . . . . . 60 . . . . . Parts Lost 77 | . 1 2 . . . . 1 . . . . . . . . . . 1 . . . 11 1 1 8 20 . 5 2 4 20 Power 13 | . . . . . . . . . . . . . . . . . . . . . . . . 1 1 3 . 2 1 1 4 Propulsion 24 | . . 1 . . . . . . . . . . . . . . . . . . . 3 . . 1 7 . 1 1 2 8 Utility 24 | . 1 1 . . . . 1 . . . . . . . . . . . . . . 6 . . 4 7 . 1 . . 3 Weapon 16 | . . . . . . . . . . . . . . . . . . 1 . . . 2 1 . 2 3 . 1 . 1 5 Highest Loss Streak 14 | . 1 1 . . . . 1 . . . . . . . . . . 1 . . . 4 1 1 5 10 . 3 2 2 14 To Critical Strikes . | . . . . . . . . . . . . . . . . . . . . . . . . . . . . . . . . Average Slot Usage (%) 95 | . 99 100 100 100 100 100 99 93 95 93 92 92 91 91 92 88 86 97 99 97 98 96 90 94 95 73 88 88 90 94 93 Engine 6 | . 14 14 11 11 11 11 6 9 7 1 . . . . 5 6 6 6 11 11 10 10 9 3 . . . . . . . Reactor 2 | . . . . . . . . . . 5 7 7 7 7 . . . . . . . . 2 9 12 11 13 10 12 3 6 Treads 20 | . 28 28 33 33 33 33 27 27 23 16 15 15 15 15 20 20 20 24 28 28 30 13 6 4 . . 8 16 20 8 . Leg 5 | . . . . . . . . . . . . . . . . . . . . . . 17 19 24 34 16 17 12 8 22 36 Device 14 | . 13 1 5 11 11 11 14 18 23 15 15 22 22 20 20 20 19 19 16 17 20 15 18 18 17 10 11 8 3 6 3 Storage 7 | . 14 14 11 11 11 11 9 9 7 7 7 7 7 7 6 6 6 6 5 5 5 5 4 4 4 4 4 4 4 4 4 Processor 5 | . . 12 5 . . . . . 7 7 7 7 7 7 6 6 6 6 5 5 5 6 2 4 4 10 13 13 13 13 11 Hackware 1 | . . . . . . . . . . 6 7 . . 2 . . . . . . . . 3 . . 2 3 4 4 8 11 Protection 2 | . . . . . . . 3 . . . . . . . 6 6 6 6 5 5 5 5 2 4 4 . . 1 4 . . Ballistic Gun 22 | . 22 18 28 33 33 32 35 19 13 23 23 23 23 26 20 15 6 22 20 16 15 19 16 16 14 14 12 13 13 12 12 Launcher 1 | . 1 8 4 . . . . 5 4 . . . . . . 3 6 . . 2 . . . . . . . . . . . Impact Weapon 1 | . . 1 . . . . . 4 . . . 6 4 1 3 1 2 . 1 1 5 . . . . . . . . 1 1 Naked Turns . | . . . . . . . . . . . . . . . . . . . . . . . . . . . . . . . . Heaviest Build 126 | 13 50 57 58 58 58 59 71 74 81 81 81 82 89 89 106 105 99 107 103 107 107 109 118 119 126 114 104 115 115 119 121 Greatest Support 280 | 40 40 40 60 60 60 60 68 76 75 97 97 97 97 97 117 117 110 110 110 110 130 140 155 165 185 155 135 191 191 216 280 Greatest Overweight (x) 1 | . 1 1 . . . . 1 1 1 1 . . . . . . . 1 . 1 . 1 1 1 . 1 . . . 1 1 Average Overweight (x) . | . . 1 . . . . . . . . . . . . . . . . . . . . . . . . . . . . . Largest Inventory Capacity 20 | 8 20 20 20 20 20 20 20 20 20 20 20 20 20 20 20 20 20 20 20 20 20 20 20 20 20 20 20 20 20 20 20 Average Capacity 19 | 8 19 20 20 20 20 20 20 20 20 20 20 20 20 20 20 20 20 20 20 20 20 20 20 20 20 20 20 20 20 20 20 Most Carried 20 | 6 19 20 20 20 20 20 20 20 20 20 20 20 20 20 19 20 20 20 20 20 20 20 20 20 19 20 19 20 19 20 20 Average Carried 19 | 4 14 19 19 19 19 19 19 19 19 19 20 19 19 19 17 19 19 19 19 19 18 18 18 19 17 17 18 19 18 19 19 Final Capacity 20 | 8 20 20 20 20 20 20 20 20 20 20 20 20 20 20 20 20 20 20 20 20 20 20 20 20 20 20 20 20 20 20 20 Final Carried 20 | 5 19 20 20 20 20 20 20 20 20 20 20 20 20 20 20 20 19 20 20 20 18 20 20 20 14 19 18 19 17 20 13 Class Distribution -------------------- 35% | Mutant 13% | Skirmisher 10% | Tank 9% | Scavenger-Skirmisher 7% | Botlord-Mutant 6% | Scavenger-Tank 6% | Scavenger-Mutant 3% | Botlord-Gunner Dominant Class ---------------- Mutant | -10/Materials Mutant | -10/Mines Tank | -9/Materials Tank | -9/Mines Tank | -9/Exiles Skirmisher | -8/Mines Skirmisher | -8/Materials Mutant | -8/Garrison Mutant | -7/Factory Scavenger-Skirmisher | -7/Waste Scavenger-Skirmisher | -7/Factory Mutant | -7/Garrison Mutant | -7/Factory Mutant | -7/Garrison Mutant | -6/Factory Mutant | -6/Garrison Mutant | -6/Factory Tank | -6/Garrison Scavenger-Tank | -5/Factory Scavenger-Mutant | -5/Garrison Scavenger-Tank | -4/Factory Scavenger-Tank | -4/Garrison Scavenger-Tank | -3/Research Scavenger-Mutant | -3/Garrison Scavenger-Mutant | -2/Research Botlord-Gunner | -2/Garrison Botlord-Mutant | -2/Research Botlord-Mutant | -2/Garrison Botlord-Mutant | -2/Research Botlord-Mutant | -2/Garrison Botlord-Mutant | -1/Access Resources | -11 -10 -10 -9 -9 -9 -8 -8 -8 -7 -7 -7 -7 -7 -7 -6 -6 -6 -6 -5 -5 -4 -4 -3 -3 -2 -2 -2 -2 -2 -2 -1 ----------- Run | Jun Mat Min Mat Min Exi Min Mat Gar Fac Was Fac Gar Fac Gar Fac Gar Fac Gar Fac Gar Fac Gar Res Gar Res Gar Res Gar Res Gar Acc Matter Collected 22944 | 310 355 317 437 16 . 66 2160 691 606 1163 20 40 356 656 206 942 . 2102 163 712 . 2211 1002 1920 1191 1906 . 763 232 932 1469 Remotely 5140 | . . . . . . . . 596 456 20 . . . . 206 379 . 241 . 317 . 746 . 410 631 . . . . . 1138 Salvage Created 21617 | 132 661 394 570 . . 74 3478 509 431 1716 . . 607 862 182 870 . 1701 156 549 . 2106 451 987 1578 1623 64 702 . 498 716 Parts 1012 | 9 48 16 38 2 . 6 200 50 29 28 . . 22 45 4 61 . 69 5 26 . 99 22 26 57 42 4 42 . 22 40 Haulers Intercepted 13 | . 2 . . . . . 6 . 3 . . . . . . . . . . . . . 2 . . . . . . . . Recyclers Shooed 15 | 2 2 1 3 . . 1 2 . . . . . 1 . . . . . . . . . 1 . 2 . . . . . . Parts Field Recycled . | . . . . . . . . . . . . . . . . . . . . . . . . . . . . . . . . Retrieved Matter . | . . . . . . . . . . . . . . . . . . . . . . . . . . . . . . . . Parts Self-Destructed . | . . . . . . . . . . . . . . . . . . . . . . . . . . . . . . . . Prevented . | . . . . . . . . . . . . . . . . . . . . . . . . . . . . . . . . Kills | -11 -10 -10 -9 -9 -9 -8 -8 -8 -7 -7 -7 -7 -7 -7 -6 -6 -6 -6 -5 -5 -4 -4 -3 -3 -2 -2 -2 -2 -2 -2 -1 ------- Run | Jun Mat Min Mat Min Exi Min Mat Gar Fac Was Fac Gar Fac Gar Fac Gar Fac Gar Fac Gar Fac Gar Res Gar Res Gar Res Gar Res Gar Acc Combat Hostiles Destroyed 381 | . 17 14 13 . . 2 47 27 11 6 . . 10 18 5 35 . 29 3 19 . 40 6 13 17 15 3 20 . 6 5 Melee 1 | . . . . . . . . . . . . . . . . . . . . . . 1 . . . . . . . . . Guns 220 | . 11 5 6 . . . 34 6 3 6 . . 1 16 1 11 . 26 3 5 . 36 6 13 9 11 . 3 . 4 4 AOE 159 | . 5 9 7 . . 2 13 21 8 . . . 9 2 4 24 . 3 . 14 . 3 . . 8 4 3 17 . 2 1 Classes Destroyed 23 | 3 5 1 1 . . 2 5 3 . 1 . . 1 . . . . . . . . 1 . . . . . . . . . Worker 24 | 1 . 5 . . . 1 8 . . . . . 1 . . . . . . . . . . . 6 . 1 . . . 1 Builder 14 | . . . . . . 1 4 . 1 . . . 1 . . . . . . . . . . . 6 . . . . . 1 Tunneler 17 | 3 4 4 . 1 . 1 3 . . . . . . . . . . . . . . . . . 1 . . . . . . Hauler 13 | . 2 . . . . . 6 . 3 . . . . . . . . . . . . . 2 . . . . . . . . Recycler 28 | 1 1 . 2 . . . 14 . . . . . 5 . . . . . . . . . . . 4 . . . . . 1 Mechanic 4 | . 1 . . . . . 1 . . . . . 1 . . . . . . . . . . . 1 . . . . . . Operator 1 | . . . . . . . 1 . . . . . . . . . . . . . . . . . . . . . . . . Watcher 7 | . 3 . 1 . . . 3 . . . . . . . . . . . . . . . . . . . . . . . . Swarmer 96 | . 6 2 4 . . . 10 14 3 . . . . 3 . 19 . 2 . 5 . 13 2 . . 4 3 6 . . . Cutter 10 | . . . . . . . . 3 . . . . . . . . . . . . . . . . . . . 7 . . . Grunt 154 | . 11 7 4 . . 1 24 5 3 . . . 3 8 4 8 . 21 2 8 . 19 1 8 10 2 . 3 . 2 . Brawler 6 | . . . . . . 1 . 1 . . . . . . . . . . . 2 . . . . 1 . . 1 . . . Duelist 8 | . . . . . . . 1 . . . . . . . 1 1 . 3 . . . . . 1 1 . . . . . . Protector 1 | . . . . . . . . . . . . . 1 . . . . . . . . . . . . . . . . . . Sentry 28 | . . . 5 . . . 8 1 1 . . . . 3 . 2 . 4 . . . 2 . 1 1 . . . . . . Specialist 6 | . . . . . . . 2 1 . . . . 1 . . . . . . . . . . . 2 . . . . . . Hunter 30 | . . . . . . . 2 . 2 . . . 2 1 . 3 . . . 2 . 1 1 4 2 4 . . . 2 4 Programmer 25 | . . . . . . . . 1 2 . . . 3 3 . 1 . . 1 2 . 2 2 . . 4 . 3 . 1 . Heavy 1 | . . . . . . . 1 . . . . . . . . . . . . . . . . . . . . . . . . Behemoth 6 | . . . . . . . . 1 . . . . . . . 1 . . . . . 1 . . . 1 . . . 1 1 Compactor 6 | . . . . . . . . . . 6 . . . . . . . . . . . . . . . . . . . . . Striker 2 | . . . . . . . . . . . . . . . . . . . . . . 2 . . . . . . . . . Assembled 5 | . . 5 . . . . . . . . . . . . . . . . . . . . . . . . . . . . . Guerrilla 2 | . . . . . . . . 1 . . . . . . 1 . . . . . . . . . . . . . . . . Infiltrator 2 | . . . . . . . . . . . . . . . . . . 2 . . . . . . . . . . . . . Best Kill Streak 22 | 3 3 5 5 1 . 2 7 7 5 1 . . 17 3 4 13 . 6 2 8 . 5 2 4 22 4 4 8 . 2 3 Combat Bots Only 13 | . 3 5 4 . . 2 4 7 4 1 . . 10 3 4 13 . 6 2 8 . 5 2 4 6 4 3 8 . 2 2 Max Kills in Single Turn 9 | 1 2 3 2 1 . 1 2 6 2 1 . . 4 2 2 3 . 2 1 3 . 3 1 1 9 2 3 4 . 2 2 Gunslinging 1 | . . . . . . . 1 . . . . . . . . 1 . 1 . . . 1 . . . . . . . . . Exploded 6 | . 2 2 2 . . 1 2 6 2 . . . 2 2 2 3 . 2 . 3 . 3 . . 3 2 2 4 . 1 1 Melee 1 | . . . . . . . . . . . . . . . . . . . . . . 1 . . . . . . . . . Uniques/NPCs Destroyed . | . . . . . . . . . . . . . . . . . . . . . . . . . . . . . . . . Combat | -11 -10 -10 -9 -9 -9 -8 -8 -8 -7 -7 -7 -7 -7 -7 -6 -6 -6 -6 -5 -5 -4 -4 -3 -3 -2 -2 -2 -2 -2 -2 -1 -------- Run | Jun Mat Min Mat Min Exi Min Mat Gar Fac Was Fac Gar Fac Gar Fac Gar Fac Gar Fac Gar Fac Gar Res Gar Res Gar Res Gar Res Gar Acc Damage Taken 22851 | . 382 437 258 . . 10 973 642 422 . . 92 61 553 51 642 . 1004 272 343 . 3056 588 1174 2033 2436 85 1288 502 877 4670 Core 1781 | . 83 54 54 . . . 97 16 47 . . 28 . . 18 27 . 39 . 20 . 193 40 35 120 258 30 70 104 55 393 Absorbed by Shields 4941 | . . . 57 . . 4 129 64 . . . 8 4 32 4 224 . 349 36 18 . 1058 368 880 674 . 16 200 8 248 560 Regen/Repaired (Parts) 537 | . 155 . . . . . 130 . . 33 . . . . . . . . 219 . . . . . . . . . . . . Core Remaining (%) 81 | 100 . 45 . . . 86 . 79 . . . . . 89 . . . 90 . 98 . 83 . 94 . . . . . 56 75 Volleys Fired 1179 | 18 57 30 32 . . 2 130 44 29 74 . . 12 35 9 57 7 103 11 33 . 118 38 99 45 72 10 18 11 30 55 Largest 4 | 2 2 2 3 . . 1 4 4 4 3 . . 4 4 4 4 1 4 4 4 . 4 4 4 4 4 1 4 1 4 4 Hottest 152 | 80 80 40 60 . . 36 104 108 140 86 . . 116 133 133 133 7 130 116 116 . 108 110 125 115 152 46 142 33 139 139 Shots Fired 2977 | 36 105 42 83 . . 2 426 91 59 208 . . 24 107 15 134 7 281 26 67 . 339 89 227 136 189 9 36 12 51 176 Gun 2591 | 36 96 24 77 . . . 401 69 33 201 . . 16 104 8 103 . 252 23 49 . 321 72 176 124 178 . 26 4 35 163 Cannon 10 | . . . . . . . . . 10 . . . . . . . . . . . . . . . . . . . . . . Launcher 200 | . 9 18 6 . . 2 25 15 15 . . . 6 1 5 25 . 5 . 18 . 18 . 1 9 6 3 7 . 4 2 Special 176 | . . . . . . . . 7 1 7 . . 2 2 2 6 7 24 3 . . . 17 50 3 5 6 3 8 12 11 Kinetic 2529 | . 60 24 77 . . . 401 69 43 201 . . 16 104 8 103 . 252 23 49 . 321 72 176 124 178 . 26 4 35 163 Thermal 72 | 36 36 . . . . . . . . . . . . . . . . . . . . . . . . . . . . . . Explosive 200 | . 9 18 6 . . 2 25 15 15 . . . 6 1 5 25 . 5 . 18 . 18 . 1 9 6 3 7 . 4 2 Electromagnetic . | . . . . . . . . . . . . . . . . . . . . . . . . . . . . . . . . Robot Hit Streak 34 | 10 16 10 22 . . . 15 8 10 32 . . 9 13 3 7 4 24 8 13 . 11 17 31 34 17 10 5 7 8 15 Robot Miss Streak 15 | 4 3 3 2 . . . 6 6 4 3 . . 3 2 2 5 . 3 5 5 . 5 4 5 15 5 1 13 1 6 6 Penetration Max 1 | . . . . . . . 1 . . . . . 1 1 . 1 . 1 1 . . 1 1 1 1 . . . . 1 1 Secondary Targets 28 | . 1 . . . . . 4 . . . . . . . . 3 . 2 1 . . 7 1 4 3 1 . 1 . . . Max Gunslinging Chain 1 | . 1 . . . . . 1 . . . . . . . . 1 . 1 1 . . 1 1 1 1 1 . 1 . . . Shots Hit Robots 1811 | 21 67 33 57 . . . 246 57 29 158 . . 11 60 4 56 3 183 16 32 . 186 59 154 89 121 5 18 7 41 98 Core Hits 1100 | 6 42 26 30 . . 5 160 42 22 24 . . 29 26 12 53 . 61 14 46 . 106 27 50 125 55 5 68 . 33 33 Critical Kills 32 | . . . . . . . 3 . 1 . . . . 7 . 3 . 4 1 . . 2 . 2 3 2 . 2 . . 2 Critical Parts Destroyed 57 | . . 1 . . . . 1 2 . 2 . . . 1 . 3 . 7 . . . 6 1 7 7 12 . . . 2 5 Critical Strikes 100 | . . 1 . . . . 4 2 1 3 . . . 8 . 6 . 13 1 . . 8 1 9 10 14 . 2 . 2 15 Destroy 96 | . . . . . . . 4 2 1 3 . . . 8 . 6 . 13 1 . . 8 1 9 10 12 . 2 . 1 15 Smash 4 | . . 1 . . . . . . . . . . . . . . . . . . . . . . . 2 . . . 1 . Melee Attacks 122 | . . 8 . . . . 1 9 1 . 2 9 2 7 . 7 . 6 5 3 . 12 . 4 3 9 . 4 3 13 14 Impact 122 | . . 8 . . . . 1 9 1 . 2 9 2 7 . 7 . 6 5 3 . 12 . 4 3 9 . 4 3 13 14 Slashing . | . . . . . . . . . . . . . . . . . . . . . . . . . . . . . . . . Piercing . | . . . . . . . . . . . . . . . . . . . . . . . . . . . . . . . . Sneak Attacks 9 | . . 7 . . . . . . . . . . 1 . . . . . . . . . . . 1 . . . . . . Combat Hostiles . | . . . . . . . . . . . . . . . . . . . . . . . . . . . . . . . . Follow-up Attacks . | . . . . . . . . . . . . . . . . . . . . . . . . . . . . . . . . Damage Inflicted 64689 | 255 1228 1777 973 60 . 255 6806 3509 1677 3840 . . 2268 2018 786 4781 . 5415 393 3418 . 6178 1094 2232 4385 4448 495 2329 8 1528 2533 Guns 35730 | 255 642 118 552 . . . 4369 902 408 3840 . . 235 1767 92 1537 . 4673 393 607 . 4312 1082 2232 1730 2716 . 340 . 603 2325 Cannons 14 | . . . . . . . . . 14 . . . . . . . . . . . . . . . . . . . . . . Explosions 26165 | . 460 1037 421 . . 191 2274 2607 1255 . . . 1935 251 694 3244 . 742 . 2811 . 1506 . . 2562 837 495 1989 . 714 140 Melee 2237 | . . 607 . . . . . . . . . . 98 . . . . . . . . 346 . . 90 895 . . . 201 . Ramming 543 | . 126 15 . 60 . 64 163 . . . . . . . . . . . . . . 14 12 . 3 . . . 8 10 68 Kinetic 35165 | . 318 118 552 . . . 4369 902 422 3840 . . 235 1767 92 1537 . 4673 393 607 . 4312 1082 2232 1730 2716 . 340 . 603 2325 Thermal 579 | 255 324 . . . . . . . . . . . . . . . . . . . . . . . . . . . . . . Explosive 26104 | . 460 1037 421 . . 191 2213 2607 1255 . . . 1935 251 694 3244 . 742 . 2811 . 1506 . . 2562 837 495 1989 . 714 140 Electromagnetic 61 | . . . . . . . 61 . . . . . . . . . . . . . . . . . . . . . . . . Impact 2237 | . . 607 . . . . . . . . . . 98 . . . . . . . . 346 . . 90 895 . . . 201 . Slashing . | . . . . . . . . . . . . . . . . . . . . . . . . . . . . . . . . Piercing . | . . . . . . . . . . . . . . . . . . . . . . . . . . . . . . . . Highest Corruption 72 | . . . . . . . . . 2 2 . . . 1 . . . . . 1 . 1 2 5 2 66 66 68 72 72 1 Average Corruption 25 | . . . . . . . . . 1 1 . . . 1 . . . . . 1 . 1 1 3 1 51 66 66 68 72 1 Corruption Purged 4 | . . . . . . . . . . 2 . . . 1 . . . . . 1 . . . . . . . . . . . Corruption Blocked . | . . . . . . . . . . . . . . . . . . . . . . . . . . . . . . . . Effects 284 | . . . . . . . . . 1 11 . . . . . . . . . 7 . 11 6 35 . 67 14 41 17 73 1 Message Errors 61 | . . . . . . . . . . 2 . . . . . . . . . 2 . 2 2 9 . 14 3 8 3 16 . Matter Fused 65 | . . . . . . . . . 1 3 . . . . . . . . . 3 . 1 3 10 . 13 3 9 6 12 1 Heat Flow Errors 29 | . . . . . . . . . . 1 . . . . . . . . . . . 3 . 2 . 6 2 4 2 9 . Energy Discharges 29 | . . . . . . . . . . 3 . . . . . . . . . 1 . 2 . 4 . 4 1 5 2 7 . Parts Rejected 2 | . . . . . . . . . . . . . . . . . . . . . . . . . . . . . 1 1 . Parts Fused 7 | . . . . . . . . . . . . . . . . . . . . . . . . 1 . 3 1 1 . 1 . Data Loss (minor) 27 | . . . . . . . . . . . . . . . . . . . . 1 . 1 1 1 . 4 . 2 1 16 . Data Loss (major) 10 | . . . . . . . . . . . . . . . . . . . . . . . . 2 . 1 2 3 1 1 . Misfires 10 | . . . . . . . . . . 1 . . . . . . . . . . . 1 . 2 . 1 . 3 1 1 . Alerts 6 | . . . . . . . . . . . . . . . . . . . . . . 1 . 2 . 1 1 . . 1 . Misdirections 5 | . . . . . . . . . . . . . . . . . . . . . . . . . . 1 . 3 . 1 . Weapon Failures 33 | . . . . . . . . . . 1 . . . . . . . . . . . . . 2 . 19 1 3 . 7 . Overload Shots . | . . . . . . . . . . . . . . . . . . . . . . . . . . . . . . . . Overflow Damage 2078 | . . 370 31 . . . 48 205 80 . . . 162 78 43 146 . 144 . 209 . 72 . . 74 313 24 16 . 45 18 Projectiles . | . . . . . . . . . . . . . . . . . . . . . . . . . . . . . . . . Explosions 1246 | . . 26 31 . . . 48 205 80 . . . 94 78 43 146 . 144 . 209 . 72 . . 24 6 24 16 . . . Melee 832 | . . 344 . . . . . . . . . . 68 . . . . . . . . . . . 50 307 . . . 45 18 Knockbacks 12 | . 1 3 . 2 . 1 2 . . . . . 1 . . . . . . . . . . . 1 . . . . . 1 Impact 12 | . 1 3 . 2 . 1 2 . . . . . 1 . . . . . . . . . . . 1 . . . . . 1 Kinetic . | . . . . . . . . . . . . . . . . . . . . . . . . . . . . . . . . Secondary . | . . . . . . . . . . . . . . . . . . . . . . . . . . . . . . . . Self-Inflicted Damage 830 | . . 7 . . . . . 26 . . . . . . . . . . . . . . . . 429 14 . 328 . 26 . Shots 33 | . . 1 . . . . . 1 . . . . . . . . . . . . . . . . 16 1 . 13 . 1 . Rammed 47 | . 10 4 . 6 . 4 17 . . . . . . . . . . . . . . . 2 . . . . . 2 2 . Targets Rammed 62 | . 17 4 . 7 . 7 17 . . . . . . . . . . . . . . 1 2 . 1 . . . 2 2 2 Kicked 3 | . . . . . . . . . . . . . . . . . . . . . . . . . 1 . . . . . 2 Crushed 12 | . 7 . . 1 . 3 . . . . . . . . . . . . . . . 1 . . . . . . . . . Highest Temperature 261 | 72 165 18 38 . . 2 120 32 8 172 . . . . . . . 13 . . . 208 230 208 30 240 248 236 261 255 215 Average Temperature 52 | 27 60 8 14 . . 2 24 15 4 94 . . . . . . . 5 . . . 81 52 40 12 50 123 72 82 102 84 Received Heat Transfer 2392 | . 129 81 73 . . 6 251 91 111 . . 12 7 139 25 94 . 422 33 12 . 461 12 83 118 36 9 11 9 167 . Effects 2 | . . . . . . . . . . . . . . . . . . . . . . . 2 . . . . . . . . Interference 2 | . . . . . . . . . . . . . . . . . . . . . . . 2 . . . . . . . . Siege Activations . | . . . . . . . . . . . . . . . . . . . . . . . . . . . . . . . . Robots Corrupted . | . . . . . . . . . . . . . . . . . . . . . . . . . . . . . . . . Combat Hostiles . | . . . . . . . . . . . . . . . . . . . . . . . . . . . . . . . . Parts Fried 18 | . . 9 . . . . . . . . . . 1 . 2 . . . . . . . . . 1 5 . . . . . Impact Corruptions 29 | . . 16 . . . . . . . . . . 2 . . . . . . . . . . . 3 4 . . . 2 2 Robots Melted 1 | . 1 . . . . . . . . . . . . . . . . . . . . . . . . . . . . . . Combat Hostiles 1 | . 1 . . . . . . . . . . . . . . . . . . . . . . . . . . . . . . Parts Melted 2 | 1 1 . . . . . . . . . . . . . . . . . . . . . . . . . . . . . . Heat Transferred 1300 | 575 725 . . . . . . . . . . . . . . . . . . . . . . . . . . . . . . Parts Sabotaged . | . . . . . . . . . . . . . . . . . . . . . . . . . . . . . . . . Parts Stolen . | . . . . . . . . . . . . . . . . . . . . . . . . . . . . . . . . Parts Stripped . | . . . . . . . . . . . . . . . . . . . . . . . . . . . . . . . . Power Chain Reactions . | . . . . . . . . . . . . . . . . . . . . . . . . . . . . . . . . Missiles Intercepted . | . . . . . . . . . . . . . . . . . . . . . . . . . . . . . . . . Alert | -11 -10 -10 -9 -9 -9 -8 -8 -8 -7 -7 -7 -7 -7 -7 -6 -6 -6 -6 -5 -5 -4 -4 -3 -3 -2 -2 -2 -2 -2 -2 -1 ------- Run | Jun Mat Min Mat Min Exi Min Mat Gar Fac Was Fac Gar Fac Gar Fac Gar Fac Gar Fac Gar Fac Gar Res Gar Res Gar Res Gar Res Gar Acc Peak Influence 1979 | 25 307 244 273 106 . 125 874 1815 1244 385 132 1363 1322 1456 959 1742 914 1979 1128 1368 718 1430 883 1228 876 701 501 882 545 609 725 Initial 1038 | . 16 119 3 106 . . . 559 952 384 25 92 715 925 764 671 914 447 1038 702 718 502 804 569 690 542 393 375 490 386 364 Average 673 | 12 129 99 189 46 . 54 481 1229 1069 202 91 944 877 1186 813 1362 770 1254 1051 1112 718 1000 802 819 679 558 452 608 501 469 472 Maximum Alert Level 5 | . 1 1 1 . . . 3 5 4 1 . 4 4 4 3 5 3 5 4 4 3 4 3 4 3 3 2 3 2 2 3 Low Security (%) 21 | 100 70 83 46 100 . 100 10 . . 66 100 4 . . . . . . . . . . . . . . . . . . 3 Level 1 11 | . 29 16 53 . . . 27 . . 33 . 6 . . . . . . . . . . . . . . 16 35 . 12 26 Level 2 22 | . . . . . . . 46 13 . . . 15 20 . . 2 51 16 . . . 16 11 23 76 96 83 15 100 87 66 Level 3 22 | . . . . . . . 15 24 58 . . 31 57 22 100 11 48 16 81 36 100 44 88 66 23 3 . 49 . . 3 Level 4 17 | . . . . . . . . 37 41 . . 42 22 77 . 66 . 40 18 63 . 39 . 10 . . . . . . . Level 5 4 | . . . . . . . . 24 . . . . . . . 19 . 26 . . . . . . . . . . . . . High Security . | . . . . . . . . . . . . . . . . . . . . . . . . . . . . . . . . Max Security . | . . . . . . . . . . . . . . . . . . . . . . . . . . . . . . . . Squads Dispatched 47 | . 4 1 1 . . . 8 . 5 . . . 6 . 2 . . . 1 . . . 2 . 9 . 1 . 3 . 4 Investigation 8 | . 4 1 . . . . 1 . 1 . . . . . . . . . . . . . . . . . . . . . 1 Extermination 6 | . . . . . . . . . 1 . . . 2 . . . . . . . . . . . 1 . . . 1 . 1 Reinforcement 26 | . . . 1 . . . 7 . 3 . . . 4 . . . . . 1 . . . 1 . 4 . 1 . 2 . 2 Assault 2 | . . . . . . . . . . . . . . . 1 . . . . . . . . . 1 . . . . . . Garrison 5 | . . . . . . . . . . . . . . . 1 . . . . . . . 1 . 3 . . . . . . Intercept . | . . . . . . . . . . . . . . . . . . . . . . . . . . . . . . . . Searches Triggered . | . . . . . . . . . . . . . . . . . . . . . . . . . . . . . . . . Construction Impeded 9 | . . . . . . . 2 . . . . . 3 . . . . . . . . . 1 . 1 . 1 . . . 1 Haulers Reinforced 2 | . . . . . . . . . 1 . . . . . . . . . . . . . . . . . . . . . 1 Active Scanning Responses . | . . . . . . . . . . . . . . . . . . . . . . . . . . . . . . . . Cargo Convoy Interrupts 1 | . . . . . . . . . . . . . 1 . . . . . . . . . . . . . . . . . . Stealth | -11 -10 -10 -9 -9 -9 -8 -8 -8 -7 -7 -7 -7 -7 -7 -6 -6 -6 -6 -5 -5 -4 -4 -3 -3 -2 -2 -2 -2 -2 -2 -1 --------- Run | Jun Mat Min Mat Min Exi Min Mat Gar Fac Was Fac Gar Fac Gar Fac Gar Fac Gar Fac Gar Fac Gar Res Gar Res Gar Res Gar Res Gar Acc Distress Signals 26 | . . . 1 . . . 7 . 1 . . . 2 . . . . . 1 . . . 2 . 1 . 1 . 2 . 8 Communications Jammed 1 | . . . . . . . . . . . . . . . . . . . . . . . 1 . . . . . . . . Distress Signals . | . . . . . . . . . . . . . . . . . . . . . . . . . . . . . . . . Times Spotted 532 | . 27 21 16 . . 3 79 20 18 6 . 17 20 18 5 19 1 48 8 10 . 41 16 21 26 14 4 22 9 14 29 Peak Tracking Total 11 | . 4 8 4 . . 3 5 7 5 2 . 5 6 3 4 8 1 8 3 4 . 6 4 4 7 4 2 11 5 5 5 Tactical Retreats 29 | . . . . . . . 3 . . . . 1 . 2 . 1 . 9 1 3 . 5 . 1 1 . . . . 1 1 Traps | -11 -10 -10 -9 -9 -9 -8 -8 -8 -7 -7 -7 -7 -7 -7 -6 -6 -6 -6 -5 -5 -4 -4 -3 -3 -2 -2 -2 -2 -2 -2 -1 ------- Run | Jun Mat Min Mat Min Exi Min Mat Gar Fac Was Fac Gar Fac Gar Fac Gar Fac Gar Fac Gar Fac Gar Res Gar Res Gar Res Gar Res Gar Acc Traps Triggered 29 | . 2 . 1 . . . . 3 2 . . 1 . 1 . . . 8 1 . . 2 1 2 1 . . 3 . 1 . Indirectly . | . . . . . . . . . . . . . . . . . . . . . . . . . . . . . . . . Trap Hack Attempts . | . . . . . . . . . . . . . . . . . . . . . . . . . . . . . . . . Triggered . | . . . . . . . . . . . . . . . . . . . . . . . . . . . . . . . . Disarmed 1 | . 1 . . . . . . . . . . . . . . . . . . . . . . . . . . . . . . Reprogrammed . | . . . . . . . . . . . . . . . . . . . . . . . . . . . . . . . . Reused . | . . . . . . . . . . . . . . . . . . . . . . . . . . . . . . . . Traps Extracted . | . . . . . . . . . . . . . . . . . . . . . . . . . . . . . . . . Installed . | . . . . . . . . . . . . . . . . . . . . . . . . . . . . . . . . Triggered . | . . . . . . . . . . . . . . . . . . . . . . . . . . . . . . . . Machines | -11 -10 -10 -9 -9 -9 -8 -8 -8 -7 -7 -7 -7 -7 -7 -6 -6 -6 -6 -5 -5 -4 -4 -3 -3 -2 -2 -2 -2 -2 -2 -1 ---------- Run | Jun Mat Min Mat Min Exi Min Mat Gar Fac Was Fac Gar Fac Gar Fac Gar Fac Gar Fac Gar Fac Gar Res Gar Res Gar Res Gar Res Gar Acc Machines Disabled 66 | . . . 1 . . 1 8 9 1 . . 2 4 4 1 4 . 6 . 3 . 4 . 5 . 2 1 3 . 4 3 Max in Single Turn 2 | . . . 1 . . 1 1 2 1 . . 1 . 1 1 1 . 1 . 1 . 1 . 2 . 1 1 2 . 1 1 Garrison Access 3 | . . . . . . . . . . . . . . . . . . . . . . . . . . . . . . . 3 Garrison Relay 21 | . . . . . . . . 5 . . . 1 . 2 . 1 . 1 . 1 . 2 . 3 . 1 . 1 . 3 . Phase Generator 3 | . . . . . . . . 1 . . . . . . . . . 1 . . . . . 1 . . . . . . . Machines Repaired . | . . . . . . . . . . . . . . . . . . . . . . . . . . . . . . . . Machines Sabotaged . | . . . . . . . . . . . . . . . . . . . . . . . . . . . . . . . . Overloaded Fab Kills . | . . . . . . . . . . . . . . . . . . . . . . . . . . . . . . . . Hacking | -11 -10 -10 -9 -9 -9 -8 -8 -8 -7 -7 -7 -7 -7 -7 -6 -6 -6 -6 -5 -5 -4 -4 -3 -3 -2 -2 -2 -2 -2 -2 -1 --------- Run | Jun Mat Min Mat Min Exi Min Mat Gar Fac Was Fac Gar Fac Gar Fac Gar Fac Gar Fac Gar Fac Gar Res Gar Res Gar Res Gar Res Gar Acc Machines Accessed 85 | . 11 1 6 . 2 . 9 3 2 . 1 2 4 2 4 1 3 3 3 . 1 4 4 3 2 1 1 2 2 2 6 Terminals 60 | . 8 . 6 . . . 7 3 2 . . 2 3 2 1 1 2 3 1 . . 4 2 3 1 1 . 2 1 2 3 Fabricators 1 | . . . . . . . . . . . . . . . . . . . . . . . 1 . . . . . . . . Repair Stations 5 | . 1 . . . . . 1 . . . . . . . 2 . . . 1 . . . . . . . . . . . . Recycling Units 2 | . 2 . . . . . . . . . . . . . . . . . . . . . . . . . . . . . . Scanalyzers . | . . . . . . . . . . . . . . . . . . . . . . . . . . . . . . . . Garrison Access 14 | . . . . . . . 1 . . . 1 . 1 . 1 . 1 . 1 . 1 . 1 . 1 . 1 . 1 . 3 Total Hacks 154 | . 26 1 15 . 4 . 27 6 5 . 1 3 8 4 5 1 3 4 4 . 1 7 5 4 2 2 1 2 2 3 8 Successful 82 | . 17 1 9 . 4 . 15 3 2 . 1 1 3 2 3 1 2 1 3 . 1 1 2 2 1 . 1 1 1 . 4 Failed 71 | . 8 . 6 . . . 12 3 3 . . 2 5 2 2 . 1 3 1 . . 6 3 2 1 2 . 1 1 3 4 Catastrophic 17 | . 2 . . . . . 1 . . . . 2 . . . . . 2 1 . . 2 1 . 1 1 . . 1 1 2 Database Lockouts 1 | . 1 . . . . . . . . . . . . . . . . . . . . . . . . . . . . . . Manual 69 | . 19 . 17 . 1 . 15 . 3 . . . 7 . 2 . . . 1 . . . 2 . . . . . . . 2 Terminals 118 | . 20 . 15 . . . 21 6 5 . . 3 7 4 1 1 2 4 1 . . 7 3 4 1 2 . 2 1 3 5 Fabricators 1 | . . . . . . . . . . . . . . . . . . . . . . . 1 . . . . . . . . Repair Stations 14 | . 4 . . . . . 5 . . . . . . . 3 . . . 2 . . . . . . . . . . . . Recycling Units 2 | . 2 . . . . . . . . . . . . . . . . . . . . . . . . . . . . . . Scanalyzers . | . . . . . . . . . . . . . . . . . . . . . . . . . . . . . . . . Garrison Access 14 | . . . . . . . 1 . . . 1 . 1 . 1 . 1 . 1 . 1 . 1 . 1 . 1 . 1 . 3 Terminal Hacks 32 | . 5 1 4 . 4 . 4 3 1 . . 1 . 2 . 1 1 1 . . . 1 . 2 . . . 1 . . . Record 3 | . . . . . 3 . . . . . . . . . . . . . . . . . . . . . . . . . . Part Schematic 2 | . 2 . . . . . . . . . . . . . . . . . . . . . . . . . . . . . . Robot Analysis 5 | . 2 . 3 . . . . . . . . . . . . . . . . . . . . . . . . . . . . Prototype ID Bank 1 | . . . 1 . . . . . . . . . . . . . . . . . . . . . . . . . . . . Open Door 3 | . . 1 . . . . . 1 . . . . . 1 . . . . . . . . . . . . . . . . . Open DSF 1 | . . . . . . . . . . . . . . . . . 1 . . . . . . . . . . . . . . Emergency Access Points 6 | . . . . . . . . 1 . . . 1 . . . 1 . 1 . . . 1 . 1 . . . . . . . Unreport Threat 2 | . . . . . . . 2 . . . . . . . . . . . . . . . . . . . . . . . . Disarm Traps 1 | . 1 . . . . . . . . . . . . . . . . . . . . . . . . . . . . . . Hauler Manifests 1 | . . . . . . . 1 . . . . . . . . . . . . . . . . . . . . . . . . Zone Layout 2 | . . . . . . . 1 . 1 . . . . . . . . . . . . . . . . . . . . . . Garrison Registry 2 | . . . . . . . . . . . . . . 1 . . . . . . . . . 1 . . . . . . . Patrol Navigation 2 | . . . . . . . . 1 . . . . . . . . . . . . . . . . . . . 1 . . . EX-Prototype ID Bank 1 | . . . . . 1 . . . . . . . . . . . . . . . . . . . . . . . . . . Fabricator Hacks . | . . . . . . . . . . . . . . . . . . . . . . . . . . . . . . . . Repair Station Hacks 11 | . 4 . . . . . 4 . . . . . . . 1 . . . 2 . . . . . . . . . . . . Scan Component 6 | . 2 . . . . . 2 . . . . . . . 1 . . . 1 . . . . . . . . . . . . Repair 5 | . 2 . . . . . 2 . . . . . . . . . . . 1 . . . . . . . . . . . . Recycling Unit Hacks . | . . . . . . . . . . . . . . . . . . . . . . . . . . . . . . . . Scanalyzer . | . . . . . . . . . . . . . . . . . . . . . . . . . . . . . . . . Garrison Access Hacks 14 | . . . . . . . 1 . . . 1 . 1 . 1 . 1 . 1 . 1 . 1 . 1 . 1 . 1 . 3 Unlock Access 11 | . . . . . . . 1 . . . 1 . 1 . 1 . 1 . 1 . 1 . 1 . 1 . 1 . 1 . . Seal Access 3 | . . . . . . . . . . . . . . . . . . . . . . . . . . . . . . . 3 Unauthorized Hacks 24 | . 7 . 5 . . . 6 . 1 . . . 2 . 1 . . . . . . . 1 . . . . . . . 1 Terminals 20 | . 5 . 5 . . . 6 . 1 . . . 2 . . . . . . . . . . . . . . . . . 1 Assimilate 2 | . . . . . . . 1 . . . . . 1 . . . . . . . . . . . . . . . . . . Botnet 18 | . 5 . 5 . . . 5 . 1 . . . 1 . . . . . . . . . . . . . . . . . 1 Fabricators 1 | . . . . . . . . . . . . . . . . . . . . . . . 1 . . . . . . . . Liberate 1 | . . . . . . . . . . . . . . . . . . . . . . . 1 . . . . . . . . Repair Stations 1 | . . . . . . . . . . . . . . . 1 . . . . . . . . . . . . . . . . Mechanics 1 | . . . . . . . . . . . . . . . 1 . . . . . . . . . . . . . . . . Recycling Units 2 | . 2 . . . . . . . . . . . . . . . . . . . . . . . . . . . . . . Tunnel 2 | . 2 . . . . . . . . . . . . . . . . . . . . . . . . . . . . . . Scanalyzers . | . . . . . . . . . . . . . . . . . . . . . . . . . . . . . . . . Garrison Access . | . . . . . . . . . . . . . . . . . . . . . . . . . . . . . . . . Data Cores Recovered . | . . . . . . . . . . . . . . . . . . . . . . . . . . . . . . . . Used . | . . . . . . . . . . . . . . . . . . . . . . . . . . . . . . . . Hacking Detections 59 | . 6 . 5 . . . 6 1 2 . 1 1 3 2 3 1 2 2 2 . 1 4 2 3 2 1 . 2 2 2 3 Full Trace Events 7 | . 1 . . . . . 1 1 . . . 1 . . . . . 1 . . . 1 . . . . . . . . 1 Feedback Events 1 | . . . . . . . . . . . . . . . . . . . . . . . . . . . . . . . 1 Corruption 1 | . . . . . . . . . . . . . . . . . . . . . . . . . . . . . . . 1 Feedback Blocked . | . . . . . . . . . . . . . . . . . . . . . . . . . . . . . . . . Robot Schematics Acquired . | . . . . . . . . . . . . . . . . . . . . . . . . . . . . . . . . Robots Built . | . . . . . . . . . . . . . . . . . . . . . . . . . . . . . . . . Authchips . | . . . . . . . . . . . . . . . . . . . . . . . . . . . . . . . . Time . | . . . . . . . . . . . . . . . . . . . . . . . . . . . . . . . . Total Robot Build Rating . | . . . . . . . . . . . . . . . . . . . . . . . . . . . . . . . . Part Schematics Acquired 2 | . 2 . . . . . . . . . . . . . . . . . . . . . . . . . . . . . . Parts Built . | . . . . . . . . . . . . . . . . . . . . . . . . . . . . . . . . Authchips . | . . . . . . . . . . . . . . . . . . . . . . . . . . . . . . . . Time . | . . . . . . . . . . . . . . . . . . . . . . . . . . . . . . . . Total Part Build Rating . | . . . . . . . . . . . . . . . . . . . . . . . . . . . . . . . . Parts Repaired 5 | . 2 . . . . . 2 . . . . . . . . . . . 1 . . . . . . . . . . . . Time 172 | . 52 . . . . . 82 . . . . . . . . . . . 38 . . . . . . . . . . . . Parts Recycled . | . . . . . . . . . . . . . . . . . . . . . . . . . . . . . . . . Recycled Matter . | . . . . . . . . . . . . . . . . . . . . . . . . . . . . . . . . Retrieved Matter . | . . . . . . . . . . . . . . . . . . . . . . . . . . . . . . . . Retrieved Components . | . . . . . . . . . . . . . . . . . . . . . . . . . . . . . . . . Parts Scanalyzed . | . . . . . . . . . . . . . . . . . . . . . . . . . . . . . . . . Part Schematics Acquired . | . . . . . . . . . . . . . . . . . . . . . . . . . . . . . . . . Parts Damaged . | . . . . . . . . . . . . . . . . . . . . . . . . . . . . . . . . Bothacking | -11 -10 -10 -9 -9 -9 -8 -8 -8 -7 -7 -7 -7 -7 -7 -6 -6 -6 -6 -5 -5 -4 -4 -3 -3 -2 -2 -2 -2 -2 -2 -1 ------------ Run | Jun Mat Min Mat Min Exi Min Mat Gar Fac Was Fac Gar Fac Gar Fac Gar Fac Gar Fac Gar Fac Gar Res Gar Res Gar Res Gar Res Gar Acc Used RIF Installer 9 | . . . . . . . . 1 . . . 1 . 2 . 1 . . . 1 . 1 . 1 . . . 1 . . . Hotswap 1 | . . . . . . . . . . . . . . 1 . . . . . . . . . . . . . . . . . Threat Obfuscator 2 | . . . . . . . . . . . . . . . . 1 . . . . . . . 1 . . . . . . . Signal Jammer 1 | . . . . . . . . . . . . 1 . . . . . . . . . . . . . . . . . . . Robot Detection 1 | . . . . . . . . . . . . . . 1 . . . . . . . . . . . . . . . . . Watcher Feeds 1 | . . . . . . . . . . . . . . . . . . . . . . 1 . . . . . . . . . Structural Interface 1 | . . . . . . . . . . . . . . . . . . . . 1 . . . . . . . . . . . Program Shield 1 | . . . . . . . . . . . . . . . . . . . . . . . . . . . . 1 . . . Robots Hacked 54 | . . . . . . . . . 1 6 . . 1 2 1 . 1 1 1 . . . 8 4 1 1 3 . 4 11 8 Non-combat 8 | . . . . . . . . . 1 . . . . . 1 . 1 . . . . . 3 . . . . . 1 . 1 Combat 46 | . . . . . . . . . . 6 . . 1 2 . . . 1 1 . . . 5 4 1 1 3 . 3 11 7 Robot Hacks Applied 63 | . . . . . . . . . 1 6 . . 2 2 1 . 3 1 2 . . . 9 4 2 1 4 . 6 11 8 parse_system 2 | . . . . . . . . . . . . . . . . . . . . . . . . 1 . . . . . . 1 find_chute 2 | . . . . . . . . . 1 . . . . . 1 . . . . . . . . . . . . . . . . drop_inventory 3 | . . . . . . . . . . . . . . . . . . . . . . . 1 . . . . . 1 . 1 purge_threat 2 | . . . . . . . . . . . . . . . . . 2 . . . . . . . . . . . . . . ignore_targets 6 | . . . . . . . . . . 6 . . . . . . . . . . . . . . . . . . . . . emergency_deploy 2 | . . . . . . . . . . . . . . 1 . . . 1 . . . . . . . . . . . . . find_garrison 6 | . . . . . . . . . . . . . 1 . . . . . 1 . . . 1 . 1 . 1 . 1 . . reboot_system 1 | . . . . . . . . . . . . . . . . . . . . . . . 1 . . . . . . . . overwrite_iff 2 | . . . . . . . . . . . . . . . . . . . . . . . 2 . . . . . . . . formatsys_low 2 | . . . . . . . . . . . . . . . . . . . . . . . 1 . . . . . 1 . . formatsys_high 33 | . . . . . . . . . . . . . 1 . . . 1 . 1 . . . 3 2 1 1 3 . 3 11 6 formatsys_deep 2 | . . . . . . . . . . . . . . 1 . . . . . . . . . 1 . . . . . . . Relay Couplers Released 95 | . . . . . . . . 22 . . . 5 . 10 . 4 . 4 . 5 . 9 . 13 . 5 . 4 . 12 2 Machine Destruction 92 | . . . . . . . . 19 . . . 5 . 10 . 4 . 4 . 5 . 9 . 13 . 5 . 4 . 12 2 Programmers 3 | . . . . . . . . 3 . . . . . . . . . . . . . . . . . . . . . . . Attached 26 | . . . . . . . . . . 1 . . 1 1 . . 1 1 1 . . . 4 2 1 1 2 1 4 3 2 Fabnet Peak Effective % . | . . . . . . . . . . . . . . . . . . . . . . . . . . . . . . . . Robots Rewired 32 | . . . . . . . . 3 . . . . . . . 2 . 6 . . . . . 17 . 2 . 2 . . . Allies Hacked . | . . . . . . . . . . . . . . . . . . . . . . . . . . . . . . . . Hacks Repelled . | . . . . . . . . . . . . . . . . . . . . . . . . . . . . . . . . Allies | -11 -10 -10 -9 -9 -9 -8 -8 -8 -7 -7 -7 -7 -7 -7 -6 -6 -6 -6 -5 -5 -4 -4 -3 -3 -2 -2 -2 -2 -2 -2 -1 -------- Run | Jun Mat Min Mat Min Exi Min Mat Gar Fac Was Fac Gar Fac Gar Fac Gar Fac Gar Fac Gar Fac Gar Res Gar Res Gar Res Gar Res Gar Acc Total Allies 112 | . . . . 3 . . 1 5 . 18 . 2 2 6 . 2 1 9 1 . . . 6 24 1 3 3 2 4 13 6 Largest Group 18 | . . . . 3 3 3 1 3 3 18 18 17 10 2 2 2 1 7 1 1 . . 3 10 11 2 3 4 4 8 10 Highest-Rated Group 579 | . . . . 40 40 40 16 70 30 444 444 430 301 70 70 264 10 340 49 49 . . 89 508 572 238 202 331 203 463 579 Highest-Rated Ally 148 | . . . . 16 16 16 16 39 10 35 35 35 35 39 39 148 10 80 49 49 . . 56 64 64 119 69 99 64 64 64 Total Orders 30 | . . . . 2 . . . . . . . . 3 3 . 1 . 10 . . . . . . 2 . . . 2 4 3 STAY 19 | . . . . 1 . . . . . . . . 2 2 . 1 . 6 . . . . . . 1 . . . 1 3 2 ROAM 1 | . . . . . . . . . . . . . . . . . . 1 . . . . . . . . . . . . . FOLLOW 9 | . . . . 1 . . . . . . . . 1 1 . . . 3 . . . . . . 1 . . . 1 1 . GUARD 1 | . . . . . . . . . . . . . . . . . . . . . . . . . . . . . . . 1 Ally Attacks 714 | . . . . . . 12 9 19 . . 19 115 87 9 18 13 . 76 4 2 . . 35 71 22 11 . 36 10 17 129 Total Damage 21880 | . . . . . . 99 88 302 . . 186 3307 3301 111 109 541 . 2452 160 92 . . 1019 2570 660 587 . 1449 352 552 3943 Kills 126 | . . . . . . 1 1 2 . . 2 25 22 . 1 2 . 15 1 1 . . 8 13 3 1 . 8 2 2 16 Allies Corrupted 5 | . . . . . . . . . . . . 1 . . 1 . . . . . . . . . . 2 . 1 . . . Allies Melted 3 | . . . . . . . . . . . . . . . . . . 1 . . . . . 1 . . . . . 1 . Intel | -11 -10 -10 -9 -9 -9 -8 -8 -8 -7 -7 -7 -7 -7 -7 -6 -6 -6 -6 -5 -5 -4 -4 -3 -3 -2 -2 -2 -2 -2 -2 -1 ------- Run | Jun Mat Min Mat Min Exi Min Mat Gar Fac Was Fac Gar Fac Gar Fac Gar Fac Gar Fac Gar Fac Gar Res Gar Res Gar Res Gar Res Gar Acc Robot Analysis Total 5 | . 2 . 3 . . . . . . . . . . . . . . . . . . . . . . . . . . . . Derelict Logs Recovered 3 | . . 1 . 2 . . . . . . . . . . . . . . . . . . . . . . . . . . . Drone Launches 2 | . . . . . . . . . . . . . . . . . . . . . . . . . . . . . . . 2 Drone Recoveries . | . . . . . . . . . . . . . . . . . . . . . . . . . . . . . . . . Exploration | -11 -10 -10 -9 -9 -9 -8 -8 -8 -7 -7 -7 -7 -7 -7 -6 -6 -6 -6 -5 -5 -4 -4 -3 -3 -2 -2 -2 -2 -2 -2 -1 ------------- Run | Jun Mat Min Mat Min Exi Min Mat Gar Fac Was Fac Gar Fac Gar Fac Gar Fac Gar Fac Gar Fac Gar Res Gar Res Gar Res Gar Res Gar Acc Turns Passed 32643 | 154 2388 1643 799 904 468 892 4237 1590 1003 1191 166 1355 1179 914 370 1309 189 2439 489 629 52 1553 613 1357 539 925 224 582 292 1212 986 Spaces Moved 15250 | 54 879 628 412 556 291 539 1511 835 383 534 93 791 652 412 199 645 105 883 217 290 31 732 288 654 260 447 138 305 151 745 590 Core . | . . . . . . . . . . . . . . . . . . . . . . . . . . . . . . . . Treads 12303 | 54 879 628 412 556 291 539 1511 835 383 534 93 791 652 412 199 645 105 883 217 290 31 242 153 195 . . 64 305 151 253 . Legs 2947 | . . . . . . . . . . . . . . . . . . . . . . 490 135 459 260 447 74 . . 492 590 Wheels . | . . . . . . . . . . . . . . . . . . . . . . . . . . . . . . . . Hover . | . . . . . . . . . . . . . . . . . . . . . . . . . . . . . . . . Flight . | . . . . . . . . . . . . . . . . . . . . . . . . . . . . . . . . Fastest Speed 103 | 160 160 240 160 160 160 160 166 163 166 165 165 165 165 165 166 166 166 166 168 166 165 120 120 120 120 103 107 150 152 115 114 Average Speed 173 | 160 235 240 160 160 160 160 222 166 233 165 165 165 165 165 166 166 166 226 168 167 165 137 152 138 120 126 126 151 153 128 115 Slowest Speed 270 | 160 240 240 160 160 160 160 250 246 246 246 165 165 165 165 166 166 166 250 168 247 166 245 270 190 120 190 152 156 154 230 190 Overloaded Moves . | . . . . . . . . . . . . . . . . . . . . . . . . . . . . . . . . Propulsion Burnouts . | . . . . . . . . . . . . . . . . . . . . . . . . . . . . . . . . Robots Hopped . | . . . . . . . . . . . . . . . . . . . . . . . . . . . . . . . . Cave-ins Triggered . | . . . . . . . . . . . . . . . . . . . . . . . . . . . . . . . . Exploration Rate (%) 47 | 4 94 95 39 78 62 96 93 87 17 97 5 90 19 55 4 76 5 92 9 34 2 85 11 61 8 44 9 50 5 66 16 Regions Visited 31 Branch Regions 4 Pre-discovered Areas 3 | . 2 . . . 1 . . . . . . . . . . . . . . . . . . . . . . . . . . Known Exits Taken 12 | . . . 1 . . . 1 . . . 1 . 1 . 1 . 1 . 1 . 1 . 1 . 1 . 1 . 1 . . Unknown Exits Taken 6 | 1 1 1 . 1 1 1 . . . . . . . . . . . . . . . . . . . . . . . . . Scrap Searched 3 | . . 1 . 1 . 1 . . . . . . . . . . . . . . . . . . . . . . . . . Spaces Dug 49 | . . . . . . 9 10 . 4 . 2 . 1 . . . . . 7 . . . . 1 2 . . . 5 4 4 Terrain Destroyed 1856 | . 62 174 45 . . 15 135 174 118 9 2 . 51 11 30 185 . 117 11 167 . 52 . 96 134 145 17 39 5 27 35 Melee 19 | . . . . . . . 1 . 1 . 2 . 1 . . . . . 5 . . . . 1 2 . . . 2 . 4 Projectile 153 | . . . . . . . 8 2 13 9 . . 4 6 1 9 . 10 6 1 . 21 . 9 13 21 . 5 3 6 6 AOE 1677 | . 62 174 45 . . 15 126 172 104 . . . 46 5 29 176 . 107 . 166 . 31 . 85 118 122 17 34 . 21 22 Terrain Rammed . | . . . . . . . . . . . . . . . . . . . . . . . . . . . . . . . . Walls Destroyed . | . . . . . . . . . . . . . . . . . . . . . . . . . . . . . . . . Machines Disabled . | . . . . . . . . . . . . . . . . . . . . . . . . . . . . . . . . Actions | -11 -10 -10 -9 -9 -9 -8 -8 -8 -7 -7 -7 -7 -7 -7 -6 -6 -6 -6 -5 -5 -4 -4 -3 -3 -2 -2 -2 -2 -2 -2 -1 --------- Run | Jun Mat Min Mat Min Exi Min Mat Gar Fac Was Fac Gar Fac Gar Fac Gar Fac Gar Fac Gar Fac Gar Res Gar Res Gar Res Gar Res Gar Acc Total 19281 | 86 1080 708 502 567 295 563 2176 979 452 713 103 830 737 571 228 781 116 1141 317 384 32 1041 417 991 374 647 181 381 198 931 759 Wait 1533 | 9 85 16 29 3 1 8 423 29 7 85 5 16 36 80 6 32 . 75 64 24 . 84 44 139 35 32 18 17 16 82 33 Move 15226 | 53 878 627 411 555 290 538 1510 834 383 533 93 790 651 411 199 644 105 882 217 289 30 731 288 653 260 446 137 304 151 744 589 Hop . | . . . . . . . . . . . . . . . . . . . . . . . . . . . . . . . . Pick Up 260 | 1 22 8 11 1 2 1 20 16 11 2 1 4 5 9 2 12 . 16 4 10 . 27 11 12 1 22 1 9 2 12 5 Fast Attach 150 | 1 2 . 1 . . 1 11 3 . 3 . . 6 . 1 . . 6 2 1 . 11 9 16 7 25 5 7 2 16 14 Attach 141 | 2 1 2 2 . . . 3 7 8 . . 1 5 4 5 8 1 10 3 7 2 16 2 5 7 14 3 7 . 4 12 Detach 19 | . . . . . . . 2 3 . . . . 1 . 1 . . . . . . 2 1 1 2 3 1 . . . 2 Swap 256 | . 11 7 5 . . 3 27 13 4 9 1 3 7 17 2 11 3 12 7 5 . 13 6 29 9 4 2 7 7 14 18 Drop 317 | 2 7 6 11 1 2 3 32 21 9 7 1 5 12 8 3 10 . 19 4 12 . 26 16 33 4 20 4 8 3 14 14 Fire 1179 | 18 57 30 32 . . 2 130 44 29 74 . . 12 35 9 57 7 103 11 33 . 118 38 99 45 72 10 18 11 30 55 Melee 122 | . . 8 . . . . 1 9 1 . 2 9 2 7 . 7 . 6 5 3 . 12 . 4 3 9 . 4 3 13 14 Ram . | . . . . . . . . . . . . . . . . . . . . . . . . . . . . . . . . Kick 3 | . . . . . . . . . . . . . . . . . . . . . . . . . 1 . . . . . 2 Crush 59 | . 17 4 . 7 . 7 17 . . . . . . . . . . . . . . 1 2 . . . . . 2 2 . Escape Stasis 12 | . . . . . . . . . . . . 2 . . . . . 10 . . . . . . . . . . . . . Rewire 4 | . . . . . . . . . . . . . . . . . . 2 . . . . . . . . . . 1 . 1 Trap . | . . . . . . . . . . . . . . . . . . . . . . . . . . . . . . . . Miscellaneous . | . . . . . . . . . . . . . . . . . . . . . . . . . . . . . . . . Route ------- -11/Junkyard -10/Materials (discovered 5 exits: *Mat x3 / *Min x2) -10/Mines (discovered 2 exits: *Mat x2) -9/Materials (discovered 2 exits: *Mat / *Min) -9/Mines (discovered 3 exits: *Mat x2 / *Exi) -9/Exiles -8/Mines (discovered 2 exits: *Mat x2) -8/Materials (discovered 5 exits: *Fac x3 / *Sto / Gar) -8/Garrison (discovered 3 exits: *Fac x3) -7/Factory -7/Waste -7/Factory -7/Garrison (discovered 3 exits: *Fac x3) -7/Factory -7/Garrison (discovered 3 exits: *Fac x3) -6/Factory -6/Garrison (discovered 4 exits: *Fac x4) -6/Factory (discovered 2 exits: Gar / DSF) -6/Garrison (discovered 3 exits: *Fac x3) -5/Factory -5/Garrison -4/Factory -4/Garrison (discovered 2 exits: *Res x2) -3/Research -3/Garrison (discovered 3 exits: *Res x3) -2/Research -2/Garrison -2/Research -2/Garrison -2/Research -2/Garrison (discovered 2 exits: *Acc x2) -1/Access To Epsilon Eridani History --------- Turn | Location | Event 35 | -11/Junkyard | Discovered new exit (range 3) 155 | -11/Junkyard | Entered Materials 314 | -10/Materials | Build established: Mutant 466 | -10/Materials | Central database locked down 469 | -10/Materials | Discovered new exit (range 16) 686 | -10/Materials | Discovered new exit (range 16) 691 | -10/Materials | Discovered new exit (range 9) 1615 | -10/Materials | Discovered new exit (range 5) 1747 | -10/Materials | Discovered new exit (range 9) 2385 | -10/Materials | Repaired Lgt. Assault Rifle 2413 | -10/Materials | Repaired Lgt. Treads? 2543 | -10/Materials | Entered Mines 2552 | -10/Mines | Met a Derelict shopkeep closing up shop 2909 | -10/Mines | Learned location of 1 exit from Materials 3007 | -10/Mines | Discovered new exit (range 7) 3116 | -10/Mines | Assembled infested the area 3121 | -10/Mines | Assisted by a Guerilla fighting off Assembled 3181 | -10/Mines | Core integrity fell below 50% 3480 | -10/Mines | A weapon hastily lodged in a ceiling crevice suddenly fell to the ground 3821 | -10/Mines | Discovered new exit (range 12) 4186 | -10/Mines | Entered Materials 4186 | -9/Materials | Evolved 2 slots: Propulsion x1, Weapon x1 4187 | -9/Materials | Identified exit to Mines 4843 | -9/Materials | Build established: Tank 4894 | -9/Materials | Discovered new exit (range 16) 4985 | -9/Materials | Entered Mines 4992 | -9/Mines | Received a Rocket Launcher from a helpful Derelict 4992 | -9/Mines | Learned Materials stockpile data 5030 | -9/Mines | Discovered new exit (range 14) 5110 | -9/Mines | Discovered new exit (range 7) 5261 | -9/Mines | Assisted by bots powering up and referring to "LRC-V3" 5360 | -9/Mines | Deemed a non-threat by the Exiles lab entrance 5361 | -9/Mines | Discovered new exit (range 5) 5523 | -9/Mines | Learned location of 1 exit from Materials 5889 | -9/Mines | Entered Exiles 5889 | -9/Exiles | Accompanied by 3 allies 5949 | -9/Exiles | Met 8R-AWN 5982 | -9/Exiles | Met EX-HEX 6051 | -9/Exiles | Met EX-BIN 6081 | -9/Exiles | Aligned with FarCom system 6083 | -9/Exiles | Given EX-Vault access code 6135 | -9/Exiles | Opened EX-Vault 6154 | -9/Exiles | Found Modified TNC 6187 | -9/Exiles | Warned to stay clear of 0b10 Research branches 6243 | -9/Exiles | Met EX-DEC 6260 | -9/Exiles | Learned location of Zion (-6) 6328 | -9/Exiles | Discovered new exit (range 14) 6357 | -9/Exiles | Left Exiles lab with Modified TNC 6357 | -9/Exiles | Entered Mines 6357 | -8/Mines | Accompanied by 3 allies 6651 | -8/Mines | Build established: Skirmisher 6850 | -8/Mines | Discovered new exit (range 4) 6969 | -8/Mines | Discovered new exit (range 7) 7249 | -8/Mines | Entered Materials 7249 | -8/Materials | Accompanied by 2 allies 7249 | -8/Materials | Evolved 2 slots: Utility x1, Weapon x1 7250 | -8/Materials | Identified exit to Storage 7552 | -8/Materials | Build established: Scavenger-Tank 7750 | -8/Materials | Discovered new exit (range 15) 7928 | -8/Materials | Build established: Scavenger-Skirmisher 8519 | -8/Materials | Repaired Imp. Grenade Launcher? 8761 | -8/Materials | Repaired Gauss Rifle 8877 | -8/Materials | Build established: Skirmisher 9725 | -8/Materials | Discovered new exit (range 16) 11116 | -8/Materials | Build established: Scavenger-Skirmisher 11158 | -8/Materials | Identified exit to Garrison 11267 | -8/Materials | Discovered new exit (range 16) 11486 | -8/Materials | Entered Garrison 11531 | -8/Garrison | Triggered checkpoint 11556 | -8/Garrison | Garrison Relay disabled 11667 | -8/Garrison | Triggered checkpoint 11696 | -8/Garrison | Triggered checkpoint 11721 | -8/Garrison | Destroyed 7 combat bots 11757 | -8/Garrison | Discovered new exit (range 12) 11767 | -8/Garrison | Spotted B-75 Beast 11789 | -8/Garrison | Destroyed B-75 Beast 12016 | -8/Garrison | Triggered checkpoint 12090 | -8/Garrison | Phase Generator disabled 12119 | -8/Garrison | Garrison Relay disabled 12299 | -8/Garrison | Build established: Mutant 12301 | -8/Garrison | Garrison Relay disabled 12327 | -8/Garrison | Discovered new exit (range 12) 12393 | -8/Garrison | Installed Relay Interface Framework 12594 | -8/Garrison | Rescued a captive Derelict 12594 | -8/Garrison | Rescued a captive Derelict 12700 | -8/Garrison | Discovered new exit (range 12) 12710 | -8/Garrison | Triggered checkpoint 12715 | -8/Garrison | Triggered checkpoint 12966 | -8/Garrison | Garrison Relay disabled 13076 | -8/Garrison | Entered Factory 13076 | -7/Factory | Accompanied by 3 allies 13076 | -7/Factory | Evolved 2 slots: Utility x2 13280 | -7/Factory | Discovered new exit (range 15) 13403 | -7/Factory | Build established: Skirmisher 13734 | -7/Factory | Build established: Mutant 14079 | -7/Factory | Sucked down chute 14079 | -7/Factory | Entered Waste 14157 | -7/Waste | Spotted C-40 Crusher 14165 | -7/Waste | Spotted C-40 Crusher 14263 | -7/Waste | Destroyed C-40 Crusher 14313 | -7/Waste | Spotted C-40 Crusher 14363 | -7/Waste | Destroyed C-40 Crusher 14404 | -7/Waste | Spotted C-40 Crusher 14444 | -7/Waste | Spotted C-40 Crusher 14449 | -7/Waste | Destroyed C-40 Crusher 14540 | -7/Waste | Destroyed C-40 Crusher 14555 | -7/Waste | Spotted C-40 Crusher 14568 | -7/Waste | Destroyed C-40 Crusher 14599 | -7/Waste | Destroyed C-40 Crusher 14638 | -7/Waste | Build established: Scavenger-Skirmisher 14729 | -7/Waste | Discovered new exit (range 12) 14990 | -7/Waste | Warlord forces began an assault 15270 | -7/Waste | Entered Factory 15270 | -7/Factory | Accompanied by 18 allies 15431 | -7/Factory | Identified exit to Garrison 15436 | -7/Factory | Entered Garrison 15436 | -7/Garrison | Accompanied by 17 allies 15489 | -7/Garrison | Triggered checkpoint 15493 | -7/Garrison | Triggered checkpoint 15552 | -7/Garrison | Triggered checkpoint 15585 | -7/Garrison | Garrison Relay disabled 15771 | -7/Garrison | Warlord forces raided the area 15802 | -7/Garrison | Triggered checkpoint 15856 | -7/Garrison | Build established: Mutant 15861 | -7/Garrison | Discovered new exit (range 14) 15895 | -7/Garrison | Rescued a captive Derelict 15896 | -7/Garrison | Rescued a captive Derelict 16098 | -7/Garrison | Triggered checkpoint 16121 | -7/Garrison | Expanded RIF knowledge: Signal Jamming 16172 | -7/Garrison | Discovered new exit (range 10) 16358 | -7/Garrison | Discovered new exit (range 13) 16791 | -7/Garrison | Entered Factory 16791 | -7/Factory | Accompanied by 9 allies 17695 | -7/Factory | Identified exit to Garrison 17772 | -7/Factory | Cargo convoy interrupted 17833 | -7/Factory | Destroyed 10 combat bots 17856 | -7/Factory | Found Prototype Launcher 17857 | -7/Factory | Identified Scatter Rocket Array 17894 | -7/Factory | Found Prototype Slashing Weapon 17894 | -7/Factory | Identified Vibroblade 17970 | -7/Factory | Entered Garrison 17992 | -7/Garrison | Triggered checkpoint 18074 | -7/Garrison | Discovered new exit (range 71) 18074 | -7/Garrison | Discovered new exit (range 38) 18074 | -7/Garrison | Discovered new exit (range 41) 18091 | -7/Garrison | Build established: Skirmisher 18106 | -7/Garrison | Triggered checkpoint 18118 | -7/Garrison | Triggered checkpoint 18232 | -7/Garrison | Triggered checkpoint 18276 | -7/Garrison | Garrison Relay disabled 18360 | -7/Garrison | Expanded RIF knowledge: Hotswap 18536 | -7/Garrison | Triggered checkpoint 18561 | -7/Garrison | Assimilated ARC 4a with formatsys_deep 18618 | -7/Garrison | Build established: Mutant 18659 | -7/Garrison | Expanded RIF knowledge: Robot Detection 18690 | -7/Garrison | Triggered checkpoint 18726 | -7/Garrison | Garrison Relay disabled 18840 | -7/Garrison | Rescued a captive Derelict 18849 | -7/Garrison | Rescued a captive Derelict 18884 | -7/Garrison | Entered Factory 18884 | -6/Factory | Accompanied by 2 allies 18884 | -6/Factory | Evolved 2 slots: Propulsion x1, Utility x1 19179 | -6/Factory | Garrison activated, responded to threat 19234 | -6/Factory | First assault squad dispatched 19254 | -6/Factory | Identified exit to Garrison 19254 | -6/Factory | Entered Garrison 19408 | -6/Garrison | Triggered checkpoint 19475 | -6/Garrison | Destroyed 13 combat bots 19645 | -6/Garrison | Triggered checkpoint 19659 | -6/Garrison | Destroyed B-75 Beast 19684 | -6/Garrison | Triggered checkpoint 19756 | -6/Garrison | Triggered checkpoint 19773 | -6/Garrison | Discovered new exit (range 6) 19796 | -6/Garrison | Discovered new exit (range 14) 19846 | -6/Garrison | Expanded RIF knowledge: Threat Obfuscation 19927 | -6/Garrison | Triggered checkpoint 20033 | -6/Garrison | Spotted B-75 Beast 20038 | -6/Garrison | Rewired B-90 Cyclops 20051 | -6/Garrison | Rewired B-86 Titan 20064 | -6/Garrison | Allies destroyed B-75 Beast 20105 | -6/Garrison | Discovered new exit (range 8) 20303 | -6/Garrison | Triggered checkpoint 20388 | -6/Garrison | Discovered new exit (range 9) 20563 | -6/Garrison | Entered Factory 20702 | -6/Factory | Identified exit to DSF 20752 | -6/Factory | Identified exit to Garrison 20752 | -6/Factory | Entered Garrison 20752 | -6/Garrison | Accompanied by 1 ally 20845 | -6/Garrison | Triggered checkpoint 20904 | -6/Garrison | Garrison Relay disabled 20948 | -6/Garrison | Triggered checkpoint 21026 | -6/Garrison | Triggered checkpoint 21345 | -6/Garrison | Discovered new exit (range 15) 21358 | -6/Garrison | Build established: Tank 21559 | -6/Garrison | Phase Generator disabled 21685 | -6/Garrison | Build established: Mutant 21697 | -6/Garrison | Triggered checkpoint 22076 | -6/Garrison | Found embedded Infiltrators 22137 | -6/Garrison | Discovered new exit (range 7) 22138 | -6/Garrison | Triggered checkpoint 22172 | -6/Garrison | Triggered checkpoint 22304 | -6/Garrison | Triggered checkpoint 22360 | -6/Garrison | Build established: Commander-Mutant 22396 | -6/Garrison | Triggered checkpoint 22487 | -6/Garrison | Discovered new exit (range 15) 22665 | -6/Garrison | Rescued a captive Derelict 22896 | -6/Garrison | Spotted B-75 Beast 22942 | -6/Garrison | Triggered checkpoint 23007 | -6/Garrison | Build established: Tank 23191 | -6/Garrison | Entered Factory 23191 | -5/Factory | Evolved 2 slots: Power x1, Propulsion x1 23306 | -5/Factory | Repaired Arm. Treads 23680 | -5/Factory | Identified exit to Garrison 23680 | -5/Factory | Entered Garrison 23680 | -5/Garrison | Accompanied by 1 ally 23712 | -5/Garrison | Triggered checkpoint 23804 | -5/Garrison | P-70 Sage assimilated allied Sentinel 6a 23835 | -5/Garrison | Triggered checkpoint 23840 | -5/Garrison | Triggered checkpoint 23885 | -5/Garrison | Destroyed 7 combat bots 23945 | -5/Garrison | Destroyed 8 combat bots 24106 | -5/Garrison | Discovered new exit (range 12) 24108 | -5/Garrison | Build established: Scavenger-Mutant 24143 | -5/Garrison | Triggered checkpoint 24200 | -5/Garrison | Expanded RIF knowledge: Structural Interface 24263 | -5/Garrison | Garrison Relay disabled 24309 | -5/Garrison | Entered Factory 24309 | -4/Factory | Evolved 2 slots: Propulsion x1, Utility x1 24349 | -4/Factory | Identified exit to Garrison 24361 | -4/Factory | Entered Garrison 24470 | -4/Garrison | Triggered checkpoint 24523 | -4/Garrison | Garrison Relay disabled 24593 | -4/Garrison | Triggered checkpoint 24722 | -4/Garrison | Spotted B-86 Titan 24911 | -4/Garrison | Destroyed B-86 Titan 25142 | -4/Garrison | Triggered checkpoint 25233 | -4/Garrison | Discovered new exit (range 9) 25257 | -4/Garrison | Triggered checkpoint 25475 | -4/Garrison | Discovered new exit (range 10) 25520 | -4/Garrison | Triggered checkpoint 25595 | -4/Garrison | Spotted Striker 25595 | -4/Garrison | Spotted Striker 25637 | -4/Garrison | Destroyed Striker 25647 | -4/Garrison | Destroyed Striker 25663 | -4/Garrison | Lost 4 parts (3u1w) 25744 | -4/Garrison | Expanded RIF knowledge: Watcher Feeds 25767 | -4/Garrison | Triggered checkpoint 25914 | -4/Garrison | Entered Research 25914 | -3/Research | Evolved 2 slots: Power x1, Propulsion x1 26017 | -3/Research | Found Antimissile System 26379 | -3/Research | Garrison activated, responded to threat 26527 | -3/Research | Identified exit to Garrison 26527 | -3/Research | Entered Garrison 26613 | -3/Garrison | Expanded RIF knowledge: Threat Obfuscation 26647 | -3/Garrison | Triggered checkpoint 26671 | -3/Garrison | Garrison Relay disabled 26984 | -3/Garrison | Assimilated ARC 8a with formatsys_deep 27063 | -3/Garrison | Triggered checkpoint 27079 | -3/Garrison | Triggered checkpoint 27249 | -3/Garrison | Discovered new exit (range 10) 27304 | -3/Garrison | Triggered checkpoint 27366 | -3/Garrison | Triggered checkpoint 27457 | -3/Garrison | Garrison Relay disabled 27555 | -3/Garrison | Phase Generator disabled 27712 | -3/Garrison | Triggered checkpoint 27730 | -3/Garrison | Triggered checkpoint 27772 | -3/Garrison | Discovered new exit (range 11) 27790 | -3/Garrison | Triggered checkpoint 27824 | -3/Garrison | Garrison Relay disabled 27853 | -3/Garrison | Discovered new exit (range 42) 27853 | -3/Garrison | Discovered new exit (range 68) 27853 | -3/Garrison | Discovered new exit (range 12) 27884 | -3/Garrison | Entered Research 27884 | -2/Research | Accompanied by 10 allies 27884 | -2/Research | Evolved 2 slots: Propulsion x1, Utility x1 28134 | -2/Research | First assault squad dispatched 28167 | -2/Research | Garrison activated, responded to threat 28339 | -2/Research | Lost 5 parts (1p4u) 28423 | -2/Research | Identified exit to Garrison 28423 | -2/Research | Entered Garrison 28454 | -2/Garrison | Rewired Executioner 28456 | -2/Garrison | Rewired Executioner 28578 | -2/Garrison | System corruption reached 10% 28585 | -2/Garrison | Lost 10 parts (2p4n1u3w) 28587 | -2/Garrison | Found Corrupted Prototype Processor 28587 | -2/Garrison | Identified Exp. Core Analyzer 28604 | -2/Garrison | System corruption reached 30% 28656 | -2/Garrison | Lost 5 parts (1p2n2u) 28795 | -2/Garrison | Lost 3 parts (1n2u) 28908 | -2/Garrison | Triggered checkpoint 29135 | -2/Garrison | Spotted B-90 Cyclops 29157 | -2/Garrison | Destroyed B-90 Cyclops 29188 | -2/Garrison | Triggered checkpoint 29226 | -2/Garrison | Triggered checkpoint 29242 | -2/Garrison | Discovered new exit (range 10) 29348 | -2/Garrison | Entered Research 29563 | -2/Research | Identified exit to Garrison 29572 | -2/Research | Entered Garrison 29572 | -2/Garrison | Accompanied by 3 allies 29617 | -2/Garrison | Expanded RIF knowledge: Program Shield 29694 | -2/Garrison | Triggered checkpoint 29734 | -2/Garrison | Rewired Striker 29738 | -2/Garrison | Rewired Striker 29752 | -2/Garrison | Build established: Botlord-Mutant 29776 | -2/Garrison | Garrison Relay disabled 29814 | -2/Garrison | Triggered checkpoint 29828 | -2/Garrison | Spotted B-90 Cyclops 29830 | -2/Garrison | Triggered checkpoint 29833 | -2/Garrison | Triggered checkpoint 29841 | -2/Garrison | Allies destroyed B-90 Cyclops 29887 | -2/Garrison | Destroyed 8 combat bots 29894 | -2/Garrison | Lost 3 parts (2p1n) 29898 | -2/Garrison | Triggered checkpoint 30054 | -2/Garrison | Discovered new exit (range 15) 30116 | -2/Garrison | Found Unknown Hackware 30119 | -2/Garrison | Found Unknown Hackware 30154 | -2/Garrison | Entered Research 30446 | -2/Research | Identified exit to Garrison 30446 | -2/Research | Entered Garrison 30486 | -2/Garrison | Triggered checkpoint 30594 | -2/Garrison | Garrison Relay disabled 30675 | -2/Garrison | Garrison Relay disabled 30776 | -2/Garrison | Spotted B-90 Cyclops 30781 | -2/Garrison | Triggered checkpoint 31066 | -2/Garrison | Destroyed B-90 Cyclops 31167 | -2/Garrison | Discovered new exit (range 10) 31234 | -2/Garrison | Build established: Botlord-Gunner 31242 | -2/Garrison | Triggered checkpoint 31266 | -2/Garrison | Triggered checkpoint 31302 | -2/Garrison | Triggered checkpoint 31389 | -2/Garrison | Discovered new exit (range 11) 31432 | -2/Garrison | Triggered checkpoint 31438 | -2/Garrison | Garrison Relay disabled 31470 | -2/Garrison | Rescued a captive Derelict 31477 | -2/Garrison | Rescued a captive Derelict 31658 | -2/Garrison | Entered Access 31658 | -1/Access | Accompanied by 8 allies 31658 | -1/Access | Evolved 2 slots: Propulsion x2 31723 | -1/Access | Build established: Botlord-Mutant 32322 | -1/Access | Spotted B-99 Colossus 32553 | -1/Access | Destroyed B-99 Colossus 32577 | -1/Access | Lost 14 parts (2p5n3u4w) 32586 | -1/Access | Spotted B-99 Colossus 32635 | -1/Access | Discovered new exit (range 5) 32644 | *** | Escaped! Last Messages --------------- 32617_ Sealed Heavy Doors breached. 32618_ B-99 Colossus activates siege mode. 32619_ The unstable cave ceiling collapses. 32619_ U-05 Engineer lays Concrete. 32621_ Biometal Leg destroyed. 32621_ Penetrated by Slug. 32621_ Slug penetrates Sealed Heavy Doors. 32621_ Penetrated by Slug. 32621_ Myomer Leg destroyed. 32621_ Slug penetrates Sealed Heavy Doors. 32621_ U-05 Engineer lays Concrete. 32624_ Slug penetrates Sealed Heavy Doors. 32624_ Slug penetrates U-05 Engineer. 32624_ U-05 Engineer suffers critical hit (Destroy). 32624_ U-05 Engineer destroyed. 32627_ U-05 Engineer lays Concrete. 32629_ Slug penetrates Sealed Heavy Doors. 32635_ Main Access Shell breached. 32635_ EXIT=FOUND 32643_ Drone released from Drone Bay. Map ----- +----------------------------------------------------+ | ?????????# G # ==%# ]] ""#????# ! | | ?????????# "" #! !=# ] #????# ! | | ?????????# " = !# #????# | | ?????????# # = ! ]#????# | | ?????????? = # #####+############# | | ???????????############ %%%%!==*!%!+ | | ???????????????????# #% #"#"########## #### | | ???????????????????# #% # # # #?????#[#??# | | ???????????????????# # # # #??????#[#??# | | ???????????????????###"% ## ##??????# #??# | | ???????????????????# % ###???????# #??##+## | | ???????????????????#% ! | BB#?????????#=#??????? | | ???????????????????#[! * =%!BB#?????????# #??????? | | ???????????????????#!% ]! ! #?????????# #??????? | | ???????????????????#]!!!%% #?????????# #??????? | | ???????????????????#!%!!= #?????????# #??????? | | ???????????????????#%! #?????????# #??????? | | ???????????????????#" """"""""#?#########+###????? | | ???????????????????# " "????????# #????? | | ???????????????????#" ""????????# "" #????? | | ???????????????????#"" """""""#?# """""" #?#### | | ???????????????????# #?# """""" +? | | ???????????????????# " """" #?# "" # | | ???????????????????# " n "????# "" # | | ???????????????????# " n" "????# + | | ???????????????????# " "@ "????# # | | ???????????????????# ?" "????# # | | ???????????????????# ?""""""????# #? | | ???????????????????# ???????????# #?#### | | ???????????????????# ?????????### #????? | | ???????????????????"""""""""""""# #????? | | ???????????????????#"" ################???? | | ???????????????????#"" ### """T""" #???? | | ???????????????????#"" #?# #???? | | ???????????????????#T #?# #???? | | ???????????????????#"" #?# ] #???? | | ???????????????????#"" #?# #???? | | ???????????#+#######"" #####+############## | | ??????? w [% %[ | | ??????? [*!%== | | ??????????#########################+########*[###+ | | ????????????????????????????????? ?????# # | | ????????????????????????????????# ???# # | | ????????????????????????????????# " ?# # | | ????????????????????????????????# """ ## # | | ????????????????????????????????# """## # | | ????????????????????????????????# " ## # " | | ????????????????????????????????# ## # | | ????????????????????????????????# ?# # | | ????????????????????????????????##########?# #### | +----------------------------------------------------+ Best States ------------- Heat Dissipation 113 Energy Generation 70 Energy Capacity 770 Matter Stores 300 Matter Capacity 300 Sight Range 16 Terrain Scan Density 10 Power Amplification 30 EM Shielding 3 Armor Coverage 600 Resistance: KI 30 Resistance: TH 30 Resistance: EM 25 Utility Shielding 66 Phase Shifting 15 Evasion (%) 70 Targeting Accuracy 8 Target Analysis 12 Core Analysis 8 Recoil Reduction 6 Matter Filtering 30 Kinecelleration 40 Salvage Targeting 3 Defensive Hacking 10 Relay Coupler Types 3 Relay Coupler Value 120 Item Schematics ----------------- Hcp. Storage Unit | -10/Materials | Hacked Grenade Launcher | -10/Materials | Hacked Robot Schematics ------------------ None Fabricated ------------ Nothing Alien Tech Used ----------------- None Achievements -------------- None Challenges ------------ None Game ------ Seed ThrowingNuclearDetonator Manual? 0 Play Time 05:38:45 Cumulative 409.6 hours Start 2023.03.27 @ 16:21:46 End 2023.03.27 @ 23:42:17 Sessions 3 Manual Loads 0 Difficulty Rogue Special Mode None Game No. 185 Rogue 185 Adventurer 0 Explorer 0 Win Type 0 Total 9 Types 5/1/0/1/2/0/0/0/0 Lore% 67 Gallery% 80 Achievement% 71 Wizard Run 0 Options --------- ASCII 0 Keyboard 0 Movement Arrows Keybinds 0 Fullscreen 0 Font 28/SmallcapsGlow Map View 72x54 Tactical HUD 1 Map Filters NONE Filters NONE Steam 1 RUN: a204eda3-55d4-4336-865d-d2cf694ac68b